fUST/lending_fUST_20240624
["ID","MTS","AMOUNT","RATE_DAILY","PERIOD"]
[330217387,1719175840071,-500.0,0.00016438,2]
[330217388,1719175840082,-520.59927141,0.00016438,2]
[330217389,1719175840092,-512.44925128,0.00016438,2]
[330217390,1719175840101,-30380.96,0.00016438,2]
[330217391,1719175840111,-500.0,0.00016438,2]
[330217392,1719175840120,-500.0,0.00016438,2]
[330217393,1719175840129,-500.0,0.00016438,2]
[330217394,1719175840139,-5138.82,0.00016438,2]
[330217395,1719175840149,-500.0,0.00016438,2]
[330217396,1719175840160,-500.0,0.00016438,2]
[330217397,1719175840170,-500.0,0.00016438,2]
[330217398,1719175840180,-500.0,0.00016438,2]
[330217399,1719175840192,-2909.78,0.00016438,2]
[330217400,1719175840201,-500.0,0.00016438,2]
[330217401,1719175840211,-500.0,0.00016438,2]
[330217402,1719175840219,-1008.58,0.00016438,2]
[330217403,1719175840229,-1404.05,0.00016438,2]
[330217404,1719175840238,-500.0,0.00016438,2]
[330217405,1719175840247,-500.0,0.00016438,2]
[330217406,1719175840256,-546.62,0.00016438,2]
[330217407,1719175840266,-500.0,0.00016438,2]
[330217408,1719175840276,-1091.97,0.00016438,2]
[330217409,1719175840287,-5796.29,0.00016438,2]
[330217410,1719175840302,-500.0,0.00016438,2]
[330217411,1719175840310,-500.0,0.00016438,2]
[330217412,1719175840319,-500.0,0.00016438,2]
[330217413,1719175840328,-509.24,0.00016438,2]
[330217414,1719175840337,-500.0,0.00016438,2]
[330217415,1719175840346,-1236.56,0.00016438,2]
[330217416,1719175840357,-500.0,0.00016438,2]
[330217417,1719175840367,-500.0,0.00016438,2]
[330217418,1719175840377,-500.0,0.00016438,2]
[330217419,1719175840386,-500.0,0.00016438,2]
[330217420,1719175840395,-2122.91,0.00016438,2]
[330217421,1719175840405,-500.0,0.00016438,2]
[330217422,1719175840416,-1211.44,0.00016438,2]
[330217423,1719175840426,-500.0,0.00016438,2]
[330217424,1719175840436,-490.01253011,0.00016438,2]
[330217425,1719175840446,-504.3,0.00016438,2]
[330217426,1719175840456,-293.07732743,0.00016438,2]
[330217427,1719175840465,-555.2,0.00016438,2]
[330217428,1719175840475,-500.0,0.00016438,2]
[330217429,1719175840484,-815.89,0.00016438,2]
[330217430,1719175840493,-531.51,0.00016438,2]
[330217431,1719175840502,-500.0,0.00016438,2]
[330217432,1719175840512,-500.0,0.00016438,2]
[330217433,1719175840521,-508.7203825,0.00016438,2]
[330217434,1719175840531,-1099.65,0.00016438,2]
[330217435,1719175840540,-1366.17,0.00016438,2]
[330217436,1719175840550,-588.6,0.00016438,2]
[330217437,1719175840560,-500.0,0.00016438,2]
[330217438,1719175840570,-500.0,0.00016438,2]
[330217439,1719175840579,-500.0,0.00016438,2]
[330217440,1719175840589,-500.0,0.00016438,2]
[330217441,1719175840600,-473.87871896,0.00016438,2]
[330217442,1719175840616,-500.0,0.00016438,2]
[330217443,1719175840631,-558.83,0.00016438,2]
[330217444,1719175840640,-890.02,0.00016438,2]
[330217445,1719175840650,-500.0,0.00016438,2]
[330217446,1719175840660,-680.79,0.00016438,2]
[330217447,1719175840669,-3704.0,0.00016438,2]
[330217448,1719175840678,-500.0,0.00016438,2]
[330217449,1719175840687,-500.0,0.00016438,2]
[330217450,1719175840697,-500.0,0.00016438,2]
[330217451,1719175840706,-632.59,0.00016438,2]
[330217452,1719175840716,-1717.16,0.00016438,2]
[330217453,1719175840726,-500.0,0.00016438,2]
[330217454,1719175840735,-500.0,0.00016438,2]
[330217455,1719175840745,-1024.39,0.00016438,2]
[330217456,1719175840754,-565.03,0.00016438,2]
[330217457,1719175840763,-500.0,0.00016438,2]
[330217458,1719175840773,-520.51810752,0.00016438,2]
[330217459,1719175840782,-500.0,0.00016438,2]
[330217460,1719175840791,-500.0,0.00016438,2]
[330217461,1719175840802,-500.0,0.00016438,2]
[330217462,1719175840813,-500.0,0.00016438,2]
[330217463,1719175840823,-500.0,0.00016438,2]
[330217464,1719175840832,-500.0,0.00016438,2]
[330217465,1719175840842,-500.0,0.00016438,2]
[330217466,1719175840852,-500.0,0.00016438,2]
[330217467,1719175840861,-500.0,0.00016438,2]
[330217468,1719175840871,-350.25959646,0.00016438,2]
[330217469,1719175840883,-500.0,0.00016438,2]
[330217470,1719175840892,-500.0,0.00016438,2]
[330217471,1719175840902,-500.0,0.00016438,2]
[330217472,1719175840914,-500.0,0.00016438,2]
[330217473,1719175840927,-500.0,0.00016438,2]
[330217474,1719175840942,-500.0,0.00016438,2]
[330217475,1719175840951,-561.56,0.00016438,2]
[330217476,1719175840961,-500.0,0.00016438,2]
[330217477,1719175840972,-6219.06,0.00016438,2]
[330217478,1719175840981,-500.0,0.00016438,2]
[330217479,1719175840992,-832.44,0.00016438,2]
[330217480,1719175841002,-2631.12,0.00016438,2]
[330217481,1719175841012,-500.0,0.00016438,2]
[330217482,1719175841021,-6005.34,0.00016438,2]
[330217483,1719175841031,-520.38567189,0.00016438,2]
[330217484,1719175841041,-3973.28,0.00016438,2]
[330217485,1719175841050,-1740.52,0.00016438,2]
[330217486,1719175841059,-1135.28,0.00016438,2]
[330217487,1719175841069,-500.0,0.00016438,2]
[330217488,1719175841079,-500.0,0.00016438,2]
[330217489,1719175841088,-500.0,0.00016438,2]
[330217490,1719175841098,-19510.98,0.00016438,2]
[330217491,1719175841107,-500.0,0.00016438,2]
[330217492,1719175841116,-500.0,0.00016438,2]
[330217493,1719175841125,-1124.59,0.00016438,2]
[330217494,1719175841134,-500.0,0.00016438,2]
[330217495,1719175841144,-527.23,0.00016438,2]
[330217496,1719175841153,-500.0,0.00016438,2]
[330217497,1719175841164,-1229.39,0.00016438,2]
[330217498,1719175841174,-500.0,0.00016438,2]
[330217499,1719175841182,-500.0,0.00016438,2]
[330217500,1719175841192,-1409.32,0.00016438,2]
[330217501,1719175841201,-3309.95,0.00016438,2]
[330217502,1719175841210,-989.32,0.00016438,2]
[330217503,1719175841219,-1313.04,0.00016438,2]
[330217504,1719175841228,-2059.13,0.00016438,2]
[330217505,1719175841237,-500.0,0.00016438,2]
[330217506,1719175841246,-356.19034104,0.00016438,2]
[330217507,1719175841264,-593.82754473,0.00016438,2]
[330217521,1719175841613,-154.83742071,0.00015885,2]
[330217523,1719175841623,-358.15257929,0.00016438,2]
[330217526,1719175841711,-861.075,0.00016438,2]
[330217687,1719175842992,-269.350406,0.00016438,2]
[330217792,1719175848578,-3535.62412894,0.00016438,2]
[330217793,1719175848588,-500.0,0.00016438,2]
[330217795,1719175848597,-2348.09,0.00016438,2]
[330217796,1719175848607,-354.79837136,0.00016438,2]
[330217797,1719175848616,-500.0,0.00016438,2]
[330217798,1719175848626,-500.0,0.00016438,2]
[330217799,1719175848636,-1409.53,0.00016438,2]
[330217800,1719175848647,-347.366074,0.00016438,2]
[330217801,1719175848658,-500.0,0.00016438,2]
[330217802,1719175848669,-709.55,0.00016438,2]
[330217803,1719175848689,-775.12,0.00016438,2]
[330217804,1719175848699,-19439.08,0.00016438,2]
[330217805,1719175848711,-500.0,0.00016438,2]
[330217806,1719175848722,-664.41,0.00016438,2]
[330217807,1719175848732,-500.0,0.00016438,2]
[330217808,1719175848742,-11117.37808337,0.00016489,2]
[330217809,1719175848752,-18427.30820839,0.0001657,2]
[330217810,1719175848763,-301.1,0.0001663,2]
[330217811,1719175848782,-420.0,0.00016667,2]
[330217812,1719175848800,-724.76472326,0.00016691,2]
[330217813,1719175848820,-228.87,0.000167,2]
[330217814,1719175848835,-876.0,0.000167,2]
[330217815,1719175848848,-150.891,0.000167,2]
[330217816,1719175848864,-500.0,0.00016712,2]
[330217817,1719175848878,-510.0,0.00016712,2]
[330217818,1719175848896,-500.0,0.00016712,2]
[330217819,1719175848911,-298.16613996,0.00016712,2]
[330217820,1719175848927,-500.0,0.00016712,2]
[330217821,1719175848943,-500.0,0.00016712,2]
[330217822,1719175848956,-857.99,0.00016712,2]
[330217823,1719175848970,-500.0,0.00016712,2]
[330217824,1719175848985,-1158.99,0.00016712,2]
[330217825,1719175849003,-500.0,0.00016712,2]
[330217826,1719175849019,-500.0,0.00016712,2]
[330217827,1719175849034,-500.0,0.00016712,2]
[330217828,1719175849045,-897.16,0.00016712,2]
[330217829,1719175849056,-500.0,0.00016712,2]
[330217830,1719175849072,-584.03,0.00016712,2]
[330217831,1719175849086,-539.19503654,0.00016712,2]
[330217832,1719175849099,-500.0,0.00016712,2]
[330217833,1719175849113,-654.83,0.00016712,2]
[330217834,1719175849127,-584.36,0.00016712,2]
[330217835,1719175849143,-500.0,0.00016712,2]
[330217836,1719175849158,-500.0,0.00016712,2]
[330217837,1719175849170,-500.76,0.00016712,2]
[330217838,1719175849180,-500.0,0.00016712,2]
[330217839,1719175849191,-500.0,0.00016712,2]
[330217840,1719175849204,-893.29,0.00016712,2]
[330217841,1719175849218,-500.0,0.00016712,2]
[330217842,1719175849232,-508.74157218,0.00016712,2]
[330217843,1719175849243,-500.0,0.00016712,2]
[330217844,1719175849255,-500.0,0.00016712,2]
[330217845,1719175849270,-1395.52,0.00016712,2]
[330217846,1719175849283,-500.0,0.00016712,2]
[330217847,1719175849295,-500.0,0.00016712,2]
[330217848,1719175849307,-500.0,0.00016712,2]
[330217849,1719175849320,-500.0,0.00016712,2]
[330217850,1719175849338,-500.0,0.00016712,2]
[330217851,1719175849352,-1011.08,0.00016712,2]
[330217852,1719175849366,-590.18,0.00016712,2]
[330217853,1719175849378,-475.44424095,0.00016712,2]
[330217854,1719175849391,-500.0,0.00016712,2]
[330217855,1719175849404,-1352.78,0.00016712,2]
[330217856,1719175849418,-500.0,0.00016712,2]
[330217857,1719175849430,-500.0,0.00016712,2]
[330217858,1719175849441,-1265.03,0.00016712,2]
[330217859,1719175849453,-3727.45,0.00016712,2]
[330217860,1719175849468,-500.0,0.00016712,2]
[330217861,1719175849481,-1616.0,0.00016712,2]
[330217862,1719175849494,-500.0,0.00016712,2]
[330217863,1719175849506,-500.0,0.00016712,2]
[330217864,1719175849519,-500.0,0.00016712,2]
[330217865,1719175849531,-500.0,0.00016712,2]
[330217866,1719175849544,-500.0,0.00016712,2]
[330217867,1719175849556,-677.87,0.00016712,2]
[330217868,1719175849569,-500.0,0.00016712,2]
[330217869,1719175849581,-500.0,0.00016712,2]
[330217870,1719175849594,-500.0,0.00016712,2]
[330217871,1719175849606,-500.0,0.00016712,2]
[330217872,1719175849617,-500.0,0.00016712,2]
[330217873,1719175849630,-500.0,0.00016712,2]
[330217874,1719175849642,-500.0,0.00016712,2]
[330217875,1719175849653,-518.09414196,0.00016712,2]
[330217876,1719175849666,-500.0,0.00016712,2]
[330217877,1719175849677,-500.0,0.00016712,2]
[330217878,1719175849688,-556.57,0.00016712,2]
[330217879,1719175849700,-770.68,0.00016712,2]
[330217880,1719175849712,-788.79,0.00016712,2]
[330217881,1719175849724,-500.0,0.00016712,2]
[330217882,1719175849736,-500.0,0.00016712,2]
[330217883,1719175849747,-1643.89,0.00016712,2]
[330217884,1719175849759,-500.0,0.00016712,2]
[330217885,1719175849772,-1928.75,0.00016712,2]
[330217886,1719175849784,-500.0,0.00016712,2]
[330217887,1719175849796,-250.0,0.00016712,2]
[330217888,1719175849814,-500.0,0.00016712,2]
[330217889,1719175849826,-500.0,0.00016712,2]
[330217890,1719175849838,-500.0,0.00016712,2]
[330217891,1719175849852,-697.4,0.00016712,2]
[330217892,1719175849864,-500.0,0.00016712,2]
[330217893,1719175849875,-500.0,0.00016712,2]
[330217894,1719175849889,-500.0,0.00016712,2]
[330217895,1719175849902,-500.0,0.00016712,2]
[330217896,1719175849914,-1089.43,0.00016712,2]
[330217897,1719175849927,-500.0,0.00016712,2]
[330217898,1719175849941,-500.0,0.00016712,2]
[330217899,1719175849953,-500.0,0.00016712,2]
[330217900,1719175849966,-500.0,0.00016712,2]
[330217901,1719175849978,-500.0,0.00016712,2]
[330217902,1719175849990,-500.0,0.00016712,2]
[330217903,1719175850002,-500.0,0.00016712,2]
[330217904,1719175850013,-500.0,0.00016712,2]
[330217905,1719175850024,-892.39,0.00016712,2]
[330217906,1719175850036,-500.0,0.00016712,2]
[330217907,1719175850048,-500.0,0.00016712,2]
[330217908,1719175850060,-1321.83,0.00016712,2]
[330217909,1719175850071,-500.0,0.00016712,2]
[330217910,1719175850081,-500.0,0.00016712,2]
[330217911,1719175850091,-662.66,0.00016712,2]
[330217912,1719175850100,-500.0,0.00016712,2]
[330217913,1719175850109,-500.0,0.00016712,2]
[330217914,1719175850119,-500.0,0.00016712,2]
[330217915,1719175850128,-30380.96,0.00016712,2]
[330217916,1719175850138,-500.0,0.00016712,2]
[330217917,1719175850148,-500.0,0.00016712,2]
[330217918,1719175850158,-5138.82,0.00016712,2]
[330217919,1719175850171,-500.0,0.00016712,2]
[330217920,1719175850180,-500.0,0.00016712,2]
[330217921,1719175850390,-500.0,0.00016712,2]
[330217922,1719175850402,-2909.78,0.00016712,2]
[330217923,1719175850412,-1008.58,0.00016712,2]
[330217924,1719175850423,-1404.05,0.00016712,2]
[330217925,1719175850432,-500.0,0.00016712,2]
[330217926,1719175850441,-500.0,0.00016712,2]
[330217927,1719175850450,-546.62,0.00016712,2]
[330217928,1719175850459,-500.0,0.00016712,2]
[330217929,1719175850469,-1091.97,0.00016712,2]
[330217930,1719175850478,-5796.29,0.00016712,2]
[330217931,1719175850488,-500.0,0.00016712,2]
[330217932,1719175850497,-500.0,0.00016712,2]
[330217933,1719175850506,-448.47520043,0.00016712,2]
[330217934,1719175850521,-51.52479957,0.00016712,2]
[330217935,1719175850530,-299.01076206,0.00016712,2]
[330217948,1719176015399,3000.0,0.000225,30]
[330217964,1719176608639,3000.0,0.000225,30]
[330218065,1719176996011,535.93,0.00010959,2]
[330218066,1719177006431,446.61,0.00010959,2]
[330218067,1719177016976,501.01,0.00010959,2]
[330218068,1719177027453,417.51,0.00010959,2]
[330218161,1719177032271,-300.0,0.00014755,2]
[330218163,1719177032290,-216.0,0.00014755,2]
[330218165,1719177032309,-24900.0,0.00014756,2]
[330218167,1719177032329,-199.633898,0.00014859,2]
[330218169,1719177032349,-261.417451,0.00014983,2]
[330218171,1719177032369,-6971.98727304,0.00015784,2]
[330218173,1719177032391,-1665.89382591,0.00015901,2]
[330218175,1719177032413,-8591.14285787,0.00015933,2]
[330218219,1719177038041,347.93,0.00010959,2]
[330218221,1719177038194,-6971.98727304,0.00015722,2]
[330218222,1719177038204,-1969.78339901,0.00015933,2]
[330218223,1719177038213,-876.0,0.00016079,2]
[330218224,1719177038223,-175.97073239,0.00016153,2]
[330218225,1719177038232,-420.0,0.00016231,2]
[330218226,1719177038242,-1168.3886757,0.00016238,2]
[330218227,1719177038252,-523.72799366,0.00016276,2]
[330218228,1719177038274,-731.2117103,0.00016338,2]
[330218229,1719177038283,-932.93459732,0.00016404,2]
[330218230,1719177038292,-932.93459732,0.00016437,2]
[330218231,1719177038303,-500.0,0.00016438,2]
[330218232,1719177038312,-500.0,0.00016438,2]
[330218233,1719177038321,-500.0,0.00016438,2]
[330218234,1719177038330,-500.0,0.00016438,2]
[330218235,1719177038339,-500.0,0.00016438,2]
[330218236,1719177038351,-500.0,0.00016438,2]
[330218237,1719177038360,-500.0,0.00016438,2]
[330218238,1719177038370,-500.0,0.00016438,2]
[330218239,1719177038380,-500.0,0.00016438,2]
[330218240,1719177038389,-500.0,0.00016438,2]
[330218241,1719177038399,-500.0,0.00016438,2]
[330218242,1719177038408,-500.0,0.00016438,2]
[330218243,1719177038418,-513.60575091,0.00016438,2]
[330218244,1719177038427,-500.0,0.00016438,2]
[330218245,1719177038437,-500.0,0.00016438,2]
[330218246,1719177038446,-500.0,0.00016438,2]
[330218247,1719177038456,-565.59,0.00016438,2]
[330218248,1719177038466,-500.0,0.00016438,2]
[330218249,1719177038475,-500.0,0.00016438,2]
[330218250,1719177038486,-199.56487531,0.00016438,2]
[330218251,1719177038496,-500.0,0.00016438,2]
[330218252,1719177038506,-500.0,0.00016438,2]
[330218253,1719177038522,-509.21904877,0.00016438,2]
[330218254,1719177038533,-500.0,0.00016438,2]
[330218255,1719177038543,-500.0,0.00016438,2]
[330218256,1719177038554,-500.0,0.00016438,2]
[330218257,1719177038563,-1118.92,0.00016438,2]
[330218258,1719177038574,-738.57,0.00016438,2]
[330218259,1719177038583,-265.50762221,0.00016438,2]
[330218260,1719177038593,-500.0,0.00016438,2]
[330218261,1719177038603,-500.0,0.00016438,2]
[330218262,1719177038613,-500.0,0.00016438,2]
[330218263,1719177038623,-500.0,0.00016438,2]
[330218264,1719177038632,-500.0,0.00016438,2]
[330218265,1719177038642,-248.52639496,0.00016438,2]
[330218266,1719177038652,-500.0,0.00016438,2]
[330218267,1719177038662,-500.0,0.00016438,2]
[330218268,1719177038671,-250.0,0.00016438,2]
[330218269,1719177038680,-500.0,0.00016438,2]
[330218270,1719177038689,-500.0,0.00016438,2]
[330218271,1719177038699,-500.0,0.00016438,2]
[330218272,1719177038709,-500.0,0.00016438,2]
[330218273,1719177038718,-520.7039951,0.00016438,2]
[330218274,1719177038728,-500.0,0.00016438,2]
[330218275,1719177038737,-500.0,0.00016438,2]
[330218276,1719177038746,-500.0,0.00016438,2]
[330218277,1719177038755,-500.0,0.00016438,2]
[330218278,1719177038771,-500.0,0.00016438,2]
[330218279,1719177038780,-500.0,0.00016438,2]
[330218280,1719177038790,-500.0,0.00016438,2]
[330218281,1719177038799,-500.0,0.00016438,2]
[330218282,1719177038809,-679.98,0.00016438,2]
[330218283,1719177038819,-500.0,0.00016438,2]
[330218284,1719177038828,-511.84843862,0.00016438,2]
[330218285,1719177038838,-500.0,0.00016438,2]
[330218286,1719177038847,-500.0,0.00016438,2]
[330218287,1719177038857,-500.0,0.00016438,2]
[330218288,1719177038867,-500.19529123,0.00016438,2]
[330218289,1719177038876,-500.0,0.00016438,2]
[330218290,1719177038886,-500.0,0.00016438,2]
[330218291,1719177038896,-500.0,0.00016438,2]
[330218292,1719177038905,-500.0,0.00016438,2]
[330218293,1719177038914,-500.0,0.00016438,2]
[330218294,1719177038924,-500.0,0.00016438,2]
[330218295,1719177038934,-500.0,0.00016438,2]
[330218296,1719177038943,-500.0,0.00016438,2]
[330218297,1719177038953,-503.83079557,0.00016438,2]
[330218298,1719177038963,-856.06,0.00016438,2]
[330218299,1719177038972,-500.0,0.00016438,2]
[330218300,1719177038982,-500.0,0.00016438,2]
[330218301,1719177038992,-500.0,0.00016438,2]
[330218302,1719177039001,-500.0,0.00016438,2]
[330218303,1719177039011,-601.94,0.00016438,2]
[330218304,1719177039026,-500.0,0.00016438,2]
[330218305,1719177039037,-154.80649189,0.00016438,2]
[330218306,1719177039047,-500.0,0.00016438,2]
[330218307,1719177039058,-500.0,0.00016438,2]
[330218308,1719177039068,-500.0,0.00016438,2]
[330218309,1719177039078,-500.0,0.00016438,2]
[330218310,1719177039089,-500.0,0.00016438,2]
[330218311,1719177039099,-407.71226481,0.00016438,2]
[330218312,1719177039109,-500.0,0.00016438,2]
[330218313,1719177039119,-1337.38,0.00016438,2]
[330218314,1719177039130,-520.59927141,0.00016438,2]
[330218315,1719177039140,-500.0,0.00016438,2]
[330218316,1719177039150,-512.44925128,0.00016438,2]
[330218317,1719177039160,-500.0,0.00016438,2]
[330218318,1719177039313,-500.0,0.00016438,2]
[330218319,1719177039323,-500.0,0.00016438,2]
[330218320,1719177039333,-500.0,0.00016438,2]
[330218321,1719177039343,-500.0,0.00016438,2]
[330218322,1719177039353,-500.0,0.00016438,2]
[330218323,1719177039362,-500.0,0.00016438,2]
[330218324,1719177039373,-279.92,0.00016438,2]
[330218325,1719177039382,-500.0,0.00016438,2]
[330218326,1719177039394,-500.0,0.00016438,2]
[330218327,1719177039404,-968.95,0.00016438,2]
[330218328,1719177039415,-500.0,0.00016438,2]
[330218329,1719177039425,-500.0,0.00016438,2]
[330218330,1719177039436,-500.0,0.00016438,2]
[330218331,1719177039446,-472.60205159,0.00016438,2]
[330218332,1719177039456,-500.0,0.00016438,2]
[330218333,1719177039466,-1296.42,0.00016438,2]
[330218334,1719177039476,-1548.66,0.00016438,2]
[330218335,1719177039487,-500.0,0.00016438,2]
[330218336,1719177039496,-500.0,0.00016438,2]
[330218337,1719177039506,-500.0,0.00016438,2]
[330218338,1719177039520,-555.2,0.00016438,2]
[330218339,1719177039530,-1212.32,0.00016438,2]
[330218340,1719177039540,-500.0,0.00016438,2]
[330218341,1719177039551,-293.07732743,0.00016438,2]
[330218342,1719177039560,-500.0,0.00016438,2]
[330218343,1719177039570,-500.0,0.00016438,2]
[330218344,1719177039579,-500.0,0.00016438,2]
[330218345,1719177039589,-500.0,0.00016438,2]
[330218346,1719177039599,-500.0,0.00016438,2]
[330218347,1719177039608,-500.0,0.00016438,2]
[330218348,1719177039618,-3572.14,0.00016438,2]
[330218349,1719177039628,-500.0,0.00016438,2]
[330218350,1719177039639,-1366.17,0.00016438,2]
[330218351,1719177039649,-500.0,0.00016438,2]
[330218352,1719177039659,-558.83,0.00016438,2]
[330218354,1719177039669,-500.0,0.00016438,2]
[330218355,1719177039679,-832.44,0.00016438,2]
[330218356,1719177039689,-449.73124058,0.00016438,2]
[330218357,1719177039699,-500.0,0.00016438,2]
[330218358,1719177039708,-500.0,0.00016438,2]
[330218359,1719177039718,-500.0,0.00016438,2]
[330218360,1719177039727,-500.0,0.00016438,2]
[330218361,1719177039737,-500.0,0.00016438,2]
[330218362,1719177039746,-500.0,0.00016438,2]
[330218363,1719177039756,-500.0,0.00016438,2]
[330218364,1719177039767,-520.51810752,0.00016438,2]
[330218365,1719177039779,-500.0,0.00016438,2]
[330218366,1719177039788,-755.92,0.00016438,2]
[330218367,1719177039798,-500.0,0.00016438,2]
[330218368,1719177039807,-500.0,0.00016438,2]
[330218369,1719177039817,-500.0,0.00016438,2]
[330218370,1719177039827,-500.0,0.00016438,2]
[330218373,1719177039836,-533.38,0.00016438,2]
[330218376,1719177039846,-500.0,0.00016438,2]
[330218378,1719177039856,-500.0,0.00016438,2]
[330218379,1719177039866,-500.0,0.00016438,2]
[330218380,1719177039876,-1575.4,0.00016438,2]
[330218381,1719177039885,-426.9345968,0.00016438,2]
[330218382,1719177039895,-500.0,0.00016438,2]
[330218383,1719177039904,-500.0,0.00016438,2]
[330218384,1719177039913,-1848.39,0.00016438,2]
[330218385,1719177039923,-500.0,0.00016438,2]
[330218387,1719177039933,-500.0,0.00016438,2]
[330218389,1719177039943,-503.23688875,0.00016438,2]
[330218390,1719177039952,-500.0,0.00016438,2]
[330218392,1719177039962,-500.0,0.00016438,2]
[330218394,1719177039972,-513.51302212,0.00016438,2]
[330218395,1719177039982,-500.0,0.00016438,2]
[330218396,1719177039992,-500.0,0.00016438,2]
[330218397,1719177040001,-668.35,0.00016438,2]
[330218398,1719177040011,-500.0,0.00016438,2]
[330218399,1719177040028,-500.0,0.00016438,2]
[330218400,1719177040037,-552.06982032,0.00016438,2]
[330218401,1719177040047,-500.0,0.00016438,2]
[330218402,1719177040057,-500.0,0.00016438,2]
[330218403,1719177040069,-534.32,0.00016438,2]
[330218405,1719177040078,-500.0,0.00016438,2]
[330218407,1719177040087,-500.0,0.00016438,2]
[330218408,1719177040097,-500.0,0.00016438,2]
[330218409,1719177040106,-500.0,0.00016438,2]
[330218410,1719177040116,-500.0,0.00016438,2]
[330218411,1719177040125,-500.0,0.00016438,2]
[330218412,1719177040135,-1044.03,0.00016438,2]
[330218413,1719177040144,-855.21,0.00016438,2]
[330218414,1719177040153,-1266.75,0.00016438,2]
[330218415,1719177040162,-500.0,0.00016438,2]
[330218416,1719177040172,-500.0,0.00016438,2]
[330218417,1719177040181,-500.0,0.00016438,2]
[330218418,1719177040191,-500.0,0.00016438,2]
[330218419,1719177040200,-500.0,0.00016438,2]
[330218420,1719177040210,-29115.09,0.00016438,2]
[330218421,1719177040219,-1110.69,0.00016438,2]
[330218422,1719177040229,-822.24,0.00016438,2]
[330218423,1719177040238,-500.0,0.00016438,2]
[330218424,1719177040248,-500.0,0.00016438,2]
[330218425,1719177040259,-500.0,0.00016438,2]
[330218426,1719177040276,-500.0,0.00016438,2]
[330218427,1719177040285,-500.0,0.00016438,2]
[330218428,1719177040294,-635.05,0.00016438,2]
[330218429,1719177040305,-1046.47,0.00016438,2]
[330218430,1719177040314,-500.0,0.00016438,2]
[330218431,1719177040323,-4924.7,0.00016438,2]
[330218432,1719177040332,-2788.54,0.00016438,2]
[330218433,1719177040341,-500.0,0.00016438,2]
[330218434,1719177040352,-500.0,0.00016438,2]
[330218435,1719177040361,-5554.78,0.00016438,2]
[330218436,1719177040370,-500.0,0.00016438,2]
[330218437,1719177040380,-966.56,0.00016438,2]
[330218438,1719177040389,-500.0,0.00016438,2]
[330218439,1719177040398,-500.0,0.00016438,2]
[330218440,1719177040407,-500.0,0.00016438,2]
[330218441,1719177040416,-500.0,0.00016438,2]
[330218442,1719177040425,-500.0,0.00016438,2]
[330218443,1719177040435,-2122.91,0.00016438,2]
[330218444,1719177040444,-500.0,0.00016438,2]
[330218445,1719177040453,-500.0,0.00016438,2]
[330218446,1719177040462,-508.7203825,0.00016438,2]
[330218447,1719177040471,-588.6,0.00016438,2]
[330218448,1719177040480,-1236.56,0.00016438,2]
[330218449,1719177040489,-1345.54,0.00016438,2]